bitfinex/quotes_ETHUSD_20251221
["timestamp","ask_amount","ask_price","bid_price","bid_amount"]
[1766287009474,0.002,2975.8,2975.0,4.22417795]
[1766287009754,0.01011378,2975.7,2975.1,0.67583022]
[1766287010067,1.3415,2975.6,2975.0,0.441]
[1766287010247,1.3415,2975.6,2975.0,0.57566086]
[1766287014863,1.3435,2975.6,2975.0,0.57566086]
[1766287019061,0.9894,2975.5,2975.0,0.57566086]
[1766287019365,1.3415,2975.5,2975.0,0.57566086]
[1766287020459,0.002,2975.6,2975.1,0.39371149]
[1766287020864,1.3435,2975.6,2975.1,0.39371149]
[1766287022591,0.9894,2975.5,2975.0,0.57666086]
[1766287022741,4.22407811,2975.5,2975.0,0.13566086]
[1766287022941,0.9894,2975.4,2975.0,0.001]
[1766287023248,1.3415,2975.3,2975.0,0.001]
[1766287023445,0.9894,2975.2,2975.0,0.001]
[1766287028157,0.002,2975.6,2975.0,0.001]
[1766287028158,0.3382,2975.5,2975.0,0.001]
[1766287028477,1.3106,2975.4,2975.0,0.001]
[1766287028680,0.002,2975.6,2975.0,0.001]
[1766287028877,0.442,2975.6,2975.0,0.001]
[1766287032175,1.3106,2975.5,2975.0,0.001]
[1766287032376,0.442,2975.6,2975.0,0.001]
[1766287032564,1.3106,2975.5,2975.0,0.001]
[1766287034084,0.52264139,2975.5,2975.0,0.001]
[1766287034284,0.01011378,2975.3,2975.0,0.001]
[1766287034458,1.3106,2975.2,2975.0,0.001]
[1766287036193,4.7467195,2975.5,2975.0,0.001]
[1766287036194,1.3106,2975.4,2975.0,0.001]
[1766287038491,0.01011378,2975.5,2975.0,0.001]
[1766287038697,0.45011378,2975.5,2975.0,0.001]
[1766287040071,0.44,2975.5,2975.0,0.001]
[1766287040291,1.92707138,2975.5,2975.0,0.001]
[1766287046391,1.7506,2975.5,2975.0,0.001]
[1766287047004,0.44,2975.5,2975.0,0.001]
[1766287049876,0.442,2975.6,2975.0,0.001]
[1766287051109,0.002,2975.6,2975.0,0.001]
[1766287051302,0.442,2975.6,2975.0,0.001]
[1766287052008,1.4054,2975.6,2975.0,0.001]
[1766287052727,1.7567,2975.6,2975.0,0.001]
[1766287055919,0.002,2975.6,2975.0,0.001]
[1766287056122,0.442,2975.6,2975.0,0.001]
[1766287058215,0.002,2975.7,2975.0,0.001]
[1766287058421,0.442,2975.7,2975.1,0.42251775]
[1766287061717,0.002,2975.7,2975.1,0.42251775]
[1766287070846,0.9744,2975.6,2975.0,0.001]
[1766287070999,1.3227,2975.4,2975.0,0.001]
[1766287078548,0.01211378,2975.7,2975.0,0.001]
[1766287078751,1.3227,2975.6,2975.0,0.001]
[1766287078950,1.3227,2975.5,2975.0,0.001]
[1766287079647,0.3483,2975.5,2975.0,0.001]
[1766287079855,1.3227,2975.5,2975.0,0.001]
[1766287080056,0.002,2975.7,2975.0,0.001]
[1766287080355,0.002,2975.7,2975.0,0.35072275]
[1766287082671,0.002,2975.7,2975.0,0.001]
[1766287083045,0.9764,2975.7,2975.0,0.001]
[1766287084543,1.3247,2975.7,2975.0,0.001]
[1766287089871,1.33481378,2975.7,2975.0,0.001]
[1766287092076,1.77481378,2975.7,2975.0,0.001]
[1766287092473,0.002,2975.7,2975.0,0.3507216]
[1766287092978,0.002,2975.7,2975.0,1.36061009]
[1766287094076,0.002,2975.7,2975.0,4.72187056]
[1766287095157,0.002,2975.7,2975.0,3.71198207]
[1766287095486,0.002,2975.7,2975.1,1.00988169]
[1766287095649,0.002,2975.7,2975.2,0.47218638]
[1766287100371,0.002,2975.8,2975.2,3.83325647]
[1766287100570,0.002,2975.8,2975.2,4.84309397]
[1766287100766,1.741,2976.1,2975.2,4.84309397]
[1766287101145,1.301,2976.1,2975.2,4.84309397]
[1766287101446,0.00084218,2976.2,2975.4,7.58521181]
[1766287101645,0.002,2976.5,2975.7,4.22431916]
[1766287101845,0.002,2976.5,2975.5,0.441]
[1766287102268,0.002,2976.5,2975.6,0.442]
[1766287103376,0.002,2976.5,2975.7,3.36055381]
[1766287103583,0.002,2976.5,2975.8,0.38025538]
[1766287104486,0.002,2976.5,2975.9,1.009603]
[1766287106785,0.002,2976.5,2975.9,4.369927]
[1766287109387,0.943,2976.5,2975.9,1.009603]
[1766287109583,0.95311378,2976.5,2975.9,1.009603]
[1766287109789,1.31241378,2976.5,2975.9,1.009603]
[1766287111457,0.002,2976.5,2975.9,1.009603]
[1766287111659,0.002,2976.5,2976.0,0.43700385]
[1766287112761,0.002,2976.6,2976.1,4.22431916]
[1766287112994,0.002,2976.7,2976.0,0.43700385]
[1766287113306,0.002,2976.7,2976.1,1.00951807]
[1766287113458,0.002,2976.8,2976.1,4.36956995]
[1766287113658,0.002,2977.7,2976.7,4.21687214]
[1766287113880,0.002,2977.7,2977.0,4.21687214]
[1766287114080,0.01211378,2977.7,2977.1,0.03358973]
[1766287114280,1.31241378,2977.7,2977.1,1.00920563]
[1766287114478,1.3023,2977.7,2977.1,1.00920563]
[1766287114990,2.48791378,2977.6,2977.1,1.00920563]
[1766287115461,2.48791378,2977.6,2977.1,4.36811253]
[1766287115663,2.48791378,2977.6,2977.2,0.43681125]
[1766287115664,1.2,2977.6,2977.2,0.43681125]
[1766287115881,1.94900539,2977.6,2977.2,0.43681125]
[1766287117156,1.94900539,2977.6,2977.1,1.00920563]
[1766287118090,1.28791378,2977.3,2977.1,1.00920563]
[1766287118293,0.9045,2977.2,2977.1,1.00920563]
[1766287118494,0.38341378,2977.3,2976.7,0.441]
[1766287118495,0.3733,2977.3,2976.7,0.441]
[1766287118663,0.45011378,2977.5,2976.7,0.441]
[1766287118664,0.01011378,2977.5,2976.8,0.03359312]
[1766287118865,1.04450539,2977.6,2976.8,0.9045]
[1766287119093,1.04450539,2977.6,2977.1,3.35894379]
[1766287119296,1.04450539,2977.6,2977.2,0.33589438]
[1766287119995,1.04450539,2977.6,2976.9,3.35918374]
[1766287120492,1.04450539,2977.6,2976.8,0.9045]
[1766287120691,2.32230539,2977.6,2976.8,0.9045]
[1766287121397,1.28791378,2977.5,2976.8,0.9045]
[1766287121995,1.2778,2977.4,2976.8,0.9045]
[1766287122197,1.2778,2977.4,2976.9,0.47049144]
[1766287122795,0.38341378,2977.3,2976.8,0.9045]
[1766287123104,1.2778,2977.1,2976.8,0.9045]
[1766287123291,0.45011378,2977.5,2976.9,0.03359199]
[1766287123292,0.44,2977.5,2976.9,0.03359199]
[1766287123871,0.45011378,2977.5,2976.9,0.03359199]
[1766287124200,1.72791378,2977.5,2976.9,0.03359199]
[1766287124399,1.72791378,2977.5,2976.9,1.00936183]
[1766287124694,0.9045,2977.4,2976.9,1.00936183]
[1766287125400,0.9045,2977.2,2976.9,1.00936183]
[1766287125698,1.2778,2977.2,2976.9,1.00936183]
[1766287128694,0.45011378,2977.5,2976.9,1.00936183]
[1766287128895,1.28791378,2977.3,2976.9,1.00936183]
[1766287129092,0.9045,2977.2,2976.9,1.00936183]
[1766287129293,0.9045,2976.9,2976.0,3.36011539]
[1766287129499,0.3733,2977.0,2976.2,3.35998547]
[1766287129695,0.9045,2977.1,2976.3,4.2504709]
[1766287129895,0.45011378,2977.4,2976.3,4.2504709]
[1766287130099,0.45011378,2977.3,2976.4,0.9045]
[1766287130298,1.72791378,2977.3,2976.5,0.51213721]
[1766287130494,0.45011378,2977.3,2976.5,0.51213721]
[1766287130693,0.44,2977.4,2976.5,0.51213721]
[1766287130894,1.44936183,2977.4,2976.6,3.35953772]
[1766287131911,1.00936183,2977.4,2976.6,3.35953772]
[1766287132217,1.00936183,2977.4,2976.7,0.60356736]
[1766287133091,2.28716183,2977.4,2976.7,0.60356736]
[1766287133413,0.44,2977.4,2976.7,3.96294971]
[1766287133704,0.44,2977.4,2976.7,4.97226739]
[1766287133906,1.2778,2977.2,2976.7,1.61288504]
[1766287134108,0.01011378,2977.3,2976.3,3.35986493]
[1766287134310,1.2778,2976.8,2976.5,1.00939579]
[1766287134515,1.2778,2976.8,2976.2,3.35991933]
[1766287134819,1.2778,2976.8,2976.3,1.38953187]
[1766287135309,0.44,2977.0,2976.0,3.36019221]
[1766287135310,0.01011378,2976.9,2976.0,3.36019221]
[1766287135482,0.3733,2976.6,2976.0,3.36018628]
[1766287135682,1.2778,2976.6,2976.0,3.36018628]
[1766287136509,1.2778,2976.6,2976.5,0.001]
[1766287136881,1.00959281,2976.8,2976.5,0.001]
[1766287138287,2.28739281,2976.8,2976.5,0.001]
[1766287139210,1.2778,2976.6,2976.0,3.36018628]
[1766287139711,1.2778,2976.6,2975.9,1.00959281]
[1766287139912,1.2778,2976.6,2975.8,3.80140252]
[1766287140114,1.2778,2976.6,2975.8,4.81099533]
[1766287142119,1.2778,2976.6,2975.8,3.80140252]
[1766287143210,1.00959281,2976.7,2975.8,7.1618434]
[1766287143410,1.00959281,2976.7,2975.8,3.80140252]
[1766287143606,1.2778,2976.6,2975.8,3.80140252]
[1766287143917,1.2778,2976.6,2975.8,3.80240252]
[1766287144317,1.2778,2976.5,2975.8,0.442]
[1766287144518,1.2778,2976.3,2975.8,0.442]
[1766287144820,1.3071,2976.2,2975.8,0.001]
[1766287145601,1.00968455,2976.4,2975.8,0.001]
[1766287145804,0.44,2976.4,2975.8,3.36143216]
[1766287146005,1.4093,2976.6,2975.8,3.36143216]
[1766287146319,1.00964378,2976.5,2975.8,3.36143216]
[1766287146520,1.00964378,2976.5,2975.9,0.33624322]
[1766287148418,1.00964378,2976.5,2975.9,3.69648854]
[1766287149023,1.00964378,2976.5,2975.9,4.13748854]
[1766287149328,1.00964378,2976.5,2975.9,4.99869231]
[1766287149533,1.00964378,2976.5,2975.9,0.77724322]
[1766287149733,1.00964378,2976.5,2976.0,0.41386378]
[1766287150119,1.00964378,2976.5,2975.9,0.77724322]
[1766287150525,1.00964378,2976.5,2976.0,3.36021143]
[1766287150725,0.63464378,2976.5,2976.0,3.36021143]
[1766287150900,1.7471,2976.8,2976.0,3.36021143]
[1766287151336,1.0096132,2976.7,2976.0,3.36021143]
[1766287151540,1.0096132,2976.7,2976.1,0.41374547]
[1766287152431,1.0096132,2976.7,2976.1,3.77384422]
[1766287152628,1.7471,2977.0,2976.1,3.77384422]
[1766287152930,0.01011378,2976.9,2976.1,3.77384422]
[1766287153293,2.75665883,2977.0,2976.1,3.77384422]
[1766287153492,2.75665883,2977.0,2976.2,0.36571588]
[1766287153717,2.31665883,2977.0,2976.2,0.36571588]
[1766287153917,1.3071,2977.0,2976.2,0.36571588]
[1766287154122,1.3071,2977.0,2976.2,4.73519277]
[1766287154315,1.31721378,2977.0,2976.2,4.73519277]
[1766287154517,1.31721378,2977.0,2976.3,0.91451928]
[1766287154933,1.3071,2976.9,2976.3,0.91451928]
[1766287155429,1.44952146,2977.1,2976.4,4.22055489]
[1766287155430,1.01963524,2977.1,2976.4,4.22055489]
[1766287156129,1.00952146,2977.1,2976.4,7.58031836]
[1766287156426,1.31921378,2977.3,2976.8,4.22055489]
[1766287156427,0.002,2977.3,2976.8,4.22055489]
[1766287156630,0.002,2977.3,2976.9,0.45564748]
[1766287156999,0.002,2977.3,2976.9,0.42205549]
[1766287157799,0.002,2977.3,2976.9,1.43133921]
[1766287158401,0.002,2977.3,2976.9,0.42205549]
[1766287158600,0.002,2977.3,2976.7,4.66155489]
[1766287158915,0.002,2977.3,2976.7,9.03031352]
[1766287160033,1.04650539,2977.6,2977.1,4.22055489]
[1766287160247,2.35360539,2977.6,2976.9,4.22055489]
[1766287160603,2.35360539,2977.6,2977.0,1.00923619]
[1766287160804,0.002,2977.3,2977.0,1.00923619]
[1766287161004,0.002,2977.3,2977.0,1.5322153]
[1766287162341,1.3071,2977.2,2976.8,0.441]
[1766287163230,1.3071,2977.2,2976.9,1.00932108]
[1766287163430,0.002,2977.3,2976.9,1.00932108]
[1766287164341,0.002,2977.3,2976.9,4.36851567]
[1766287164638,0.002,2977.3,2977.0,0.48095157]
[1766287165210,0.002,2977.3,2976.9,1.00932108]
[1766287167039,0.002,2977.7,2976.9,1.00932108]
[1766287167240,0.002,2978.5,2976.9,1.00932108]
[1766287167241,0.002,2978.5,2977.7,4.22055489]
[1766287167445,0.002,2978.5,2978.1,4.22055489]
[1766287167773,0.01011378,2979.1,2978.1,4.22055489]
[1766287167774,1.2533,2978.9,2978.1,4.64261038]
[1766287167948,1.2533,2978.9,2978.1,4.22055489]
[1766287168246,0.002,2978.5,2978.0,4.22055489]
[1766287168448,0.002,2978.5,2978.2,1.00882554]
[1766287169148,1.2533,2979.0,2978.2,5.22938043]
[1766287169347,0.01011378,2979.1,2978.2,5.22938043]
[1766287169553,1.2533,2978.8,2978.2,5.22938043]
[1766287169730,1.2533,2978.8,2978.2,1.00882554]
[1766287170361,0.01011378,2978.9,2978.2,1.00882554]
[1766287170531,0.9153,2978.6,2978.2,1.00882554]
[1766287170942,1.2533,2978.2,2977.3,4.22055489]
[1766287171140,1.2533,2978.2,2977.5,4.27382225]
[1766287171964,2.26231555,2978.4,2977.5,4.27382225]
[1766287172260,2.26231555,2978.4,2977.5,7.6323445]
[1766287174464,1.2533,2978.3,2977.5,4.27382225]
[1766287174760,1.2533,2978.2,2977.5,3.35852225]
[1766287175330,1.2553,2978.2,2977.5,3.35852225]
[1766287176429,1.2891,2979.7,2977.5,10.76921583]
[1766287176664,4.22255489,2979.4,2977.6,2.15016197]
[1766287176870,1.2871,2979.1,2978.0,4.22055489]
[1766287177167,1.2871,2979.1,2978.1,0.44]
[1766287177335,1.2871,2979.1,2978.2,0.42205549]
[1766287177537,1.2871,2979.1,2978.1,1.44876448]
[1766287178066,1.00554688,2979.1,2978.1,1.44876448]
[1766287178238,0.60332813,2979.1,2978.2,6.7154657]
[1766287178567,0.3521,2979.4,2978.2,6.7154657]
[1766287178767,0.002,2979.4,2978.2,6.74904302]
[1766287178972,0.002,2979.4,2978.3,0.60332813]
[1766287179143,0.002,2979.4,2978.4,0.03357507]
[1766287179465,0.002,2979.4,2978.5,0.44]
[1766287180133,0.002,2979.4,2978.6,1.00863221]
[1766287180333,0.002,2979.4,2978.7,3.35716923]
[1766287180666,0.002,2979.4,2978.0,3.35788329]
[1766287180667,0.01011378,2978.7,2978.0,3.35788329]
[1766287180852,1.29721378,2978.7,2977.9,3.35804453]
[1766287181051,0.01011378,2978.5,2977.9,3.35804453]
[1766287181364,1.2871,2978.7,2977.8,3.79815264]
[1766287181572,1.00895107,2978.4,2977.8,3.79815264]
[1766287181738,0.01011378,2978.6,2977.8,4.51380812]
[1766287182142,0.01011378,2979.2,2977.9,3.35797883]
[1766287182465,1.00881875,2979.2,2977.9,7.7248687]
[1766287182840,1.95593253,2979.2,2977.9,7.7248687]
[1766287183173,0.937,2979.1,2977.9,7.7248687]
[1766287183469,0.937,2979.1,2978.0,0.40004909]
[1766287184444,0.937,2979.1,2978.1,6.7156912]
[1766287184767,0.937,2979.1,2978.2,0.44]
[1766287185266,1.2871,2979.1,2978.1,6.7156912]
[1766287185456,0.01011378,2979.0,2978.1,7.1556912]
[1766287185663,1.2871,2979.1,2978.2,0.71565548]
[1766287186061,0.01011378,2979.2,2978.2,0.71565548]
[1766287186463,0.01011378,2979.0,2978.2,0.71565548]
[1766287186663,1.29721378,2979.0,2978.2,0.71565548]
[1766287188079,0.01011378,2979.0,2978.2,7.43107096]
[1766287188270,1.2871,2979.2,2978.3,0.40004909]
[1766287188465,0.442,2979.4,2978.4,6.71501476]
[1766287188664,0.002,2979.4,2978.4,6.71501476]
[1766287188874,0.002,2979.4,2978.5,0.44]
[1766287189054,1.2891,2979.4,2978.5,0.44]
[1766287189379,1.29721378,2979.3,2978.5,0.44]
[1766287189575,0.937,2979.2,2978.5,0.44]
[1766287189781,1.2871,2979.0,2978.5,0.44]
[1766287191882,0.002,2979.1,2978.5,0.44]
[1766287193576,0.002,2979.1,2978.5,3.79737437]
[1766287193780,0.002,2979.1,2978.5,4.51287302]
[1766287195884,0.002,2979.1,2978.5,1.15549865]
[1766287196056,0.002,2979.1,2978.5,0.44]
[1766287196260,0.002,2979.1,2978.5,3.79736901]
[1766287196880,0.01011378,2979.5,2978.5,3.79736901]
[1766287197084,1.2871,2979.4,2978.5,3.79736901]
[1766287197980,0.01011378,2979.5,2978.5,3.79736901]
[1766287198177,0.3501,2979.3,2978.5,4.51285636]
[1766287198859,1.2871,2979.2,2978.5,4.51385636]
[1766287199192,1.2871,2979.2,2978.5,3.79836901]
[1766287200081,0.002,2979.4,2978.5,3.79836901]
[1766287200481,1.2871,2979.3,2978.5,3.79836901]
[1766287201186,1.2871,2979.3,2978.5,0.441]
[1766287201384,0.01011378,2979.2,2978.5,0.441]
[1766287201607,0.01011378,2979.2,2978.5,3.79837552]
[1766287201763,0.002,2979.4,2978.5,7.87136869]
[1766287201964,0.002,2979.4,2978.5,12.0848107]
[1766287202165,0.002,2979.4,2978.5,4.51397403]
[1766287202392,0.002,2979.4,2978.5,7.87136869]
[1766287202763,1.2891,2979.4,2978.5,7.87136869]
[1766287203494,1.2891,2979.4,2978.6,0.40010606]
[1766287203790,0.002,2979.7,2978.7,0.03357169]
[1766287203973,0.002,2979.7,2978.6,4.61354807]
[1766287203974,0.002,2979.7,2978.9,4.21344201]
[1766287204173,0.002,2979.7,2979.0,0.44]
[1766287204379,0.002,2979.7,2979.1,0.4653442]
[1766287205498,0.002,2979.7,2979.0,0.44]
[1766287206904,0.002,2979.7,2979.1,3.35671847]
[1766287208310,0.002,2979.7,2979.0,0.44]
[1766287208479,1.4104,2979.4,2978.7,3.35708309]
[1766287208674,1.42051378,2979.4,2978.7,4.46868716]
[1766287209120,0.01011378,2979.6,2978.7,4.46868716]
[1766287209488,0.01011378,2979.6,2978.7,7.82585639]
[1766287209795,0.002,2979.7,2978.7,7.82585639]
[1766287209979,0.002,2979.7,2978.8,0.44415856]
[1766287211090,0.002,2979.7,2978.9,6.71388766]
[1766287211785,0.002,2979.7,2978.9,3.35694383]
[1766287212007,1.4124,2979.7,2978.9,3.35694383]
[1766287212209,1.4104,2979.6,2978.9,3.35694383]
[1766287212413,1.4104,2979.6,2979.0,0.38011024]
[1766287215815,0.002,2979.7,2979.0,0.38111024]
[1766287216418,1.4124,2979.7,2979.0,0.38111024]
[1766287216805,1.42051378,2979.6,2979.0,0.001]
[1766287217608,1.4104,2979.6,2979.0,3.35781469]
[1766287218218,0.002,2979.7,2979.0,0.001]
[1766287221043,1.4104,2979.6,2979.0,0.001]
[1766287222665,0.01211378,2979.7,2979.0,0.001]
[1766287222875,0.01011378,2979.5,2979.0,0.001]
[1766287223363,1.42251378,2979.7,2979.0,0.001]
[1766287224074,1.86151378,2979.7,2979.0,0.001]
[1766287225462,2.04867654,2979.7,2979.0,0.001]
[1766287227366,1.60967654,2979.7,2979.0,0.001]
[1766287228495,1.42251378,2979.7,2979.0,0.001]
[1766287231280,0.01211378,2979.7,2979.0,0.001]
[1766287231771,0.002,2979.7,2979.0,0.001]
[1766287231971,0.002,2979.7,2979.0,4.21263398]
[1766287233172,0.002,2979.7,2979.0,0.001]
[1766287233682,1.4599,2979.5,2979.0,0.001]
[1766287236086,0.01011378,2979.6,2979.0,0.001]
[1766287236457,1.5051,2979.7,2979.0,0.001]
[1766287238185,1.5051,2979.7,2979.0,4.92813061]
[1766287238186,0.002,2979.7,2979.0,4.92813061]
[1766287238685,0.002,2979.7,2979.0,0.71649663]
[1766287239192,0.002,2979.6,2979.0,0.71649663]
[1766287239695,4.86848211,2980.4,2979.1,7.56835245]
[1766287239877,1.5031,2979.9,2979.1,7.96856039]
[1766287240082,1.5031,2979.9,2979.1,7.56835245]
[1766287240284,1.1571,2979.9,2979.1,7.56835245]
[1766287240493,1.5031,2979.8,2979.1,7.56835245]
[1766287240706,0.01011378,2980.0,2979.0,0.001]
[1766287240707,0.01011378,2980.0,2979.2,0.75693525]
[1766287240882,1.5031,2979.7,2979.0,3.3577858]
[1766287242218,0.01011378,2979.8,2979.0,3.3577858]
[1766287245700,1.51321378,2979.8,2979.0,3.3577858]
[1766287245906,1.5031,2979.7,2979.0,3.3577858]
[1766287246774,1.1571,2979.7,2979.0,3.3577858]
[1766287246972,1.5031,2979.6,2979.0,3.3577858]
[1766287251222,0.01211378,2979.8,2979.0,0.001]
[1766287251387,1.5031,2979.5,2979.0,0.001]
[1766287256997,0.346,2979.5,2979.0,0.001]
[1766287257199,1.5031,2979.4,2979.0,0.001]
[1766287259807,1.5031,2979.1,2978.5,0.001]
[1766287260005,0.346,2978.9,2978.5,0.001]
[1766287260213,0.01011378,2979.2,2978.5,0.001]
[1766287260419,0.346,2979.0,2978.5,0.001]
[1766287260643,0.01011378,2979.2,2978.0,0.44]
[1766287260644,0.346,2978.6,2978.0,0.44]
[1766287260845,1.5031,2978.5,2978.0,0.44]
[1766287261414,0.01011378,2979.0,2978.0,0.44]
[1766287261616,1.5031,2979.1,2978.4,4.21175673]
[1766287261910,1.1571,2979.5,2978.6,4.21175673]
[1766287262110,0.439,2979.4,2978.4,5.0729324]
[1766287262454,1.5031,2979.1,2978.4,0.86117567]
[1766287262953,1.5031,2978.7,2977.8,0.001]
[1766287263111,1.5031,2978.7,2977.9,3.35805125]
[1766287263310,0.346,2978.6,2977.9,3.3580284]
[1766287263525,0.01011378,2978.8,2977.9,3.3580284]
[1766287263724,0.01011378,2978.8,2978.4,0.001]
[1766287265041,1.56421378,2978.8,2978.4,0.001]
[1766287266539,0.01011378,2979.0,2978.4,0.001]
[1766287266738,1.56421378,2979.3,2978.4,0.001]
[1766287266940,0.439,2979.1,2978.4,0.42257356]
[1766287267148,1.9931,2979.2,2978.4,0.42257356]
[1766287267472,1.5541,2979.1,2978.4,0.42257356]
[1766287267664,1.56421378,2979.1,2978.4,0.42257356]
[1766287267958,1.56421378,2979.1,2978.4,0.001]
[1766287268619,1.5541,2978.8,2978.4,0.001]
[1766287270344,5.76883563,2978.8,2978.4,0.001]
[1766287270536,5.76883563,2978.8,2977.8,0.001]
[1766287270537,0.01011378,2978.6,2978.0,3.35795056]
[1766287270849,0.01011378,2978.6,2978.1,0.33579506]
[1766287271011,1.56421378,2978.6,2978.1,0.33579506]
[1766287271435,1.5541,2978.6,2978.1,0.33579506]
[1766287271634,0.01011378,2978.7,2977.8,0.441]
[1766287271837,1.5541,2978.5,2977.8,3.79917217]
[1766287272119,1.5541,2978.5,2977.8,0.441]
[1766287273049,1.5541,2978.5,2977.8,3.79917789]
[1766287273240,1.5541,2978.5,2977.8,0.441]
[1766287273720,1.5541,2978.5,2977.8,0.82094074]
[1766287273923,0.3594,2978.4,2977.8,0.82094074]
[1766287274118,4.21473563,2978.6,2977.8,0.441]
[1766287274119,1.5541,2978.3,2977.8,0.441]
[1766287275424,1.5541,2978.3,2977.8,0.001]
[1766287275748,4.65373563,2978.4,2977.8,0.001]
[1766287276051,1.5541,2978.3,2977.8,0.001]
[1766287277655,1.1947,2978.3,2977.8,0.001]
[1766287277855,1.5541,2978.2,2977.8,0.001]
[1766287278456,0.58585494,2978.3,2977.8,0.001]
[1766287278656,1.5541,2978.2,2977.8,0.001]
[1766287282557,0.58585494,2978.3,2977.8,0.001]
[1766287282757,1.9941,2978.4,2977.8,0.001]
[1766287282935,2.46048494,2978.4,2977.8,0.001]
[1766287285976,2.02048494,2978.4,2977.8,0.001]
[1766287292687,0.46638494,2978.4,2977.8,0.001]
[1766287292986,1.5513,2978.3,2977.8,0.001]
[1766287298183,1.76576849,2978.2,2977.8,0.001]
[1766287298776,0.20196849,2978.2,2977.8,0.001]
[1766287298982,1.5638,2978.1,2977.8,0.001]
[1766287299376,0.46838494,2978.4,2977.8,0.001]
[1766287299550,1.2093,2978.2,2977.8,0.001]
[1766287299745,1.5638,2978.2,2977.8,0.001]
[1766287304480,2.0058,2978.4,2977.8,0.001]
[1766287305368,0.442,2978.4,2977.8,0.001]
[1766287305563,1.5638,2978.3,2977.8,0.001]
[1766287306482,1.2093,2978.1,2977.8,0.001]
[1766287306850,1.5638,2978.1,2977.8,0.001]
[1766287310999,1.57391378,2978.3,2977.8,0.001]
[1766287311285,2.06216693,2978.3,2977.8,0.001]
[1766287319763,1.57391378,2978.3,2977.8,0.001]
[1766287320885,1.5638,2978.2,2977.8,0.001]
[1766287321562,1.2093,2978.2,2977.8,0.001]
[1766287321760,1.5638,2978.1,2977.8,0.001]
[1766287322191,0.01011378,2978.3,2977.8,0.001]
[1766287322384,4.21651235,2977.8,2977.4,0.6]
[1766287322580,1.5638,2977.6,2977.4,0.6]
[1766287322890,1.5638,2977.3,2976.9,1.201]
[1766287323391,0.3545,2977.6,2976.9,1.201]
[1766287323582,4.21651235,2977.8,2976.9,1.201]
[1766287323785,1.2093,2977.6,2976.9,1.201]
[1766287324092,0.80145848,2977.7,2976.9,1.201]
[1766287324093,1.5638,2977.4,2976.9,1.201]
[1766287325860,2.33295848,2977.7,2977.0,0.03359086]
[1766287326064,2.33295848,2977.7,2976.9,4.56018499]
[1766287326065,1.5315,2977.7,2976.9,4.56018499]
[1766287326279,0.44,2977.8,2976.9,4.56018499]
[1766287326480,1.9715,2977.8,2976.9,4.56018499]
[1766287326684,1.5315,2977.7,2976.9,4.56018499]
[1766287327195,4.22662613,2978.1,2977.0,0.03359086]
[1766287327196,1.5315,2978.1,2977.0,0.03359086]
[1766287327568,1.5315,2978.1,2976.9,7.91938415]
[1766287327784,1.5315,2978.1,2977.0,0.03359086]
[1766287327982,0.44,2978.3,2977.1,6.71794698]
[1766287328188,0.44,2978.3,2977.2,0.44]
[1766287328378,1.9715,2978.3,2977.3,0.7157947]
[1766287328567,1.5315,2978.3,2977.3,0.7157947]
[1766287329903,1.5315,2978.3,2977.4,3.35863505]
[1766287330196,0.002,2978.4,2977.4,6.7172701]
[1766287330412,0.442,2978.4,2977.4,6.7172701]
[1766287330573,1.5335,2978.4,2977.5,0.39990987]
[1766287330772,1.5315,2978.3,2977.6,0.44]
[1766287333305,1.5315,2978.3,2977.6,3.79840243]
[1766287333802,1.5315,2978.3,2977.6,0.44]
[1766287334809,1.5335,2978.3,2977.6,0.44]
[1766287335017,1.5335,2978.3,2977.6,4.21824644]
[1766287337222,1.5335,2978.3,2977.6,0.85984045]
[1766287338609,1.5315,2978.2,2977.6,0.85984045]
[1766287339321,1.5315,2978.2,2977.6,4.21821983]
[1766287339617,1.5315,2978.2,2977.6,0.85984045]
[1766287340382,1.5315,2978.2,2977.6,0.44]
[1766287341821,1.5335,2978.2,2977.6,0.44]
[1766287342696,0.002,2978.3,2977.6,3.79838154]
[1766287342901,0.002,2978.3,2977.6,3.79838456]
[1766287344929,1.5335,2978.3,2977.6,3.79838456]
[1766287345131,1.5335,2978.3,2977.7,0.71568879]
[1766287346822,1.5335,2978.3,2977.7,4.07394562]
[1766287347524,1.5335,2978.3,2977.7,0.71568879]
[1766287348793,0.002,2978.3,2977.7,0.71568879]
[1766287349092,1.5315,2978.2,2977.7,0.71568879]
[1766287349720,1.1721,2978.2,2977.7,0.71568879]
[1766287349906,1.5378,2978.1,2977.7,0.71568879]
[1766287350232,1.5378,2978.1,2977.8,0.40001578]
[1766287353951,0.002,2978.3,2977.6,0.44]
[1766287354109,1.5378,2978.0,2977.6,0.44]
[1766287355948,0.002,2978.3,2977.6,0.44]
[1766287355949,3.3596242,2978.3,2977.6,0.44]
[1766287356149,1.1824,2978.0,2977.5,0.001]
[1766287356460,1.5521,2977.8,2977.5,0.001]
[1766287356954,0.002,2978.3,2977.5,0.001]
[1766287357153,1.1824,2978.0,2977.5,0.001]
[1766287357455,1.5521,2978.0,2977.5,0.001]
[1766287359117,0.44,2978.1,2977.5,0.001]
[1766287361163,1.5541,2978.2,2977.5,0.001]
[1766287361357,1.55047403,2978.2,2977.5,0.001]
[1766287361551,0.44,2978.2,2977.5,0.001]
[1766287363280,1.5521,2978.1,2977.5,0.001]
[1766287368082,1.5521,2978.1,2977.5,0.38096318]
[1766287369566,1.5521,2978.1,2977.5,3.73948188]
[1766287370253,0.442,2978.2,2977.5,3.73948188]
[1766287370254,0.002,2978.2,2977.6,4.21655982]
[1766287370448,0.002,2978.3,2977.7,0.44]
[1766287371948,0.002,2978.3,2977.8,0.37983819]
[1766287373141,0.002,2978.3,2977.7,0.44]